Department family,Entity,Date,Expense Type,Expense area,Supplier,Transation number,Amount,Narrative
Department for Culture Media and Sport,Department for Culture Media and Sport,01/10/2015,Building Maintenance,Estates & Property Services,Atos IT Services UK Limited,30041391,54951.9,SUPPORT WORK DCMS
Department for Culture Media and Sport,Department for Culture Media and Sport,01/10/2015,VAT-Recoverable Contracted-Out,Misc Balance Sheet,ARCADIS Solutions Ltd,30042523,5866.72,WORKS DELIVERED AUGUST 2015
Department for Culture Media and Sport,Department for Culture Media and Sport,01/10/2015,Works Manager Fees,State Ceremonials Prog Costs,ARCADIS Solutions Ltd,30042523,29333.58,WORKS DELIVERED AUGUST 2015
Department for Culture Media and Sport,Department for Culture Media and Sport,01/10/2015,Capital Grant Private Sector,Broadband UK Capital+Programme,Call Flow Solutions Ltd,30042556,42953,BDUK Market Test Pilots milestone payment
Department for Culture Media and Sport,Department for Culture Media and Sport,01/10/2015,Capital Grant Private Sector,Broadband UK Capital+Programme,Call Flow Solutions Ltd,30042557,30058,BDUK Market Test Pilots milestone payment
Department for Culture Media and Sport,Department for Culture Media and Sport,01/10/2015,Capital Grants to LAs,Broadband UK Capital+Programme,West Sussex County Council,30042568,225320,BDUK Superfast Britain milestone grant claim payment
Department for Culture Media and Sport,Department for Culture Media and Sport,01/10/2015,Capital Grants to LAs,Broadband UK Capital+Programme,Northumberland County Council,30042569,914732,BDUK Superfast Britain milestone grant claim payment
Department for Culture Media and Sport,Department for Culture Media and Sport,01/10/2015,Capital Grants to LAs,Broadband UK Capital+Programme,North Lincolnshire Council (Rural),30042570,212757,BDUK Superfast Britain milestone grant claim payment
Department for Culture Media and Sport,Department for Culture Media and Sport,01/10/2015,Basic Pay (Secondees),Museums & Cultural Property,Tate (Modern),30042572,45637.14,BDUK Superfast Britain milestone grant claim payment
Department for Culture Media and Sport,Department for Culture Media and Sport,01/10/2015,Grant to OGD (Resource),Architecture + heritage progs,The Treasurer to the Queen,50001913,58320,MH Grant Claim October 15
Department for Culture Media and Sport,Department for Culture Media and Sport,01/10/2015,Capital Grant Private Sector,GIA Architecture+Heritage,Greenwich Foundation for the RN College,50001914,101500,ORNC Grant claim October 2015
Department for Culture Media and Sport,Department for Culture Media and Sport,01/10/2015,Grant-in-Aid (DCMS NDPBs),GIA Museums & Galleries,Geffrye Museum,50001915,120043,GM Grant in Aid October 2015
Department for Culture Media and Sport,Department for Culture Media and Sport,01/10/2015,Grant-in-Aid (DCMS NDPBs),GIA Museums & Galleries,Wallace Collection,50001916,220000,TWC Grant in Aid October 2015
Department for Culture Media and Sport,Department for Culture Media and Sport,01/10/2015,Grant-in-Aid (DCMS NDPBs),GIA Museums & Galleries,Sir John Soane's Museum,50001917,80000,SJSM Grant in Aid October 2015
Department for Culture Media and Sport,Department for Culture Media and Sport,01/10/2015,Grant-in-Aid (DCMS NDPBs),GIA Museums & Galleries,National Portrait Gallery,50001918,552167,NPG Grant in Aid October 2015
Department for Culture Media and Sport,Department for Culture Media and Sport,01/10/2015,Grant-in-Aid (DCMS NDPBs),GIA Museums & Galleries,Horniman Museum,50001919,133700,HM Grant in Aid October 2015
Department for Culture Media and Sport,Department for Culture Media and Sport,01/10/2015,Grant-in-Aid (DCMS NDPBs),GIA Museums & Galleries,Victoria & Albert Museum,50001921,3109084,V&A Grant in Aid October 2015
Department for Culture Media and Sport,Department for Culture Media and Sport,01/10/2015,Grant-in-Aid (DCMS NDPBs),OFCOM,OFCOM,50001924,4122626,October 2015/16 Spectrum Mang Costs
Department for Culture Media and Sport,Department for Culture Media and Sport,01/10/2015,Grant-in-Aid (DCMS NDPBs),OFCOM,OFCOM,50001925,578349,October 2015/16 UHF 700MHz costs
Department for Culture Media and Sport,Department for Culture Media and Sport,01/10/2015,Grant-in-Aid (DCMS NDPBs),OFCOM,OFCOM,50001926,231017,October 2015/16 ORPHAN Costs
Department for Culture Media and Sport,Department for Culture Media and Sport,01/10/2015,Grant-in-Aid (DCMS NDPBs),GIA British Film Institute,British Film Institute,50001928,734425,BFI Grant in Aid October 2015
Department for Culture Media and Sport,Department for Culture Media and Sport,01/10/2015,Grant-in-Aid (DCMS NDPBs),GIA Architecture+Heritage,Churches Conservation Trust,50001929,250000,CCT Grant in Aid October 2015
Department for Culture Media and Sport,Department for Culture Media and Sport,01/10/2015,Grant-in-Aid (DCMS NDPBs),GIA Sports bodies,Sport England,50001930,17000000,SE Grant in Aid October 2015
Department for Culture Media and Sport,Department for Culture Media and Sport,01/10/2015,Grant-in-Aid (DCMS NDPBs),GIA Sports bodies,Sport Ground Safety Authority,50001931,83500,SGSA Grant in Aid October 2015
Department for Culture Media and Sport,Department for Culture Media and Sport,01/10/2015,Grant-in-Aid (DCMS NDPBs),GIA Sports bodies,United Kingdom Anti Doping Ltd,50001933,433000,UKAD-Grant in Aid October 2015
Department for Culture Media and Sport,Department for Culture Media and Sport,01/10/2015,Grant-in-Aid (DCMS NDPBs),GIA Tourism bodies,VisitBritain,50001935,3900000,VB Grant in aid October 2015
Department for Culture Media and Sport,Department for Culture Media and Sport,01/10/2015,Grant-in-Aid (DCMS NDPBs),GIA S4C Welsh Fourth Channel,S4C-Sianel Pedwar Cymru-all inv inc. GIA,50001936,1262000,S4C Grant in Aid October 2015
Department for Culture Media and Sport,Department for Culture Media and Sport,01/10/2015,Grant-in-Aid (DCMS NDPBs),GIA Arts bodies,Arts Council of England,50001938,65000000,ACE Grant in Aid october 2015
Department for Culture Media and Sport,Department for Culture Media and Sport,01/10/2015,Grant-in-Aid (DCMS NDPBs),GIA Libraries bodies,British Library,50001939,9262991,BL Grant in Aid October 2015
Department for Culture Media and Sport,Department for Culture Media and Sport,01/10/2015,Grant-in-Aid (DCMS NDPBs),GIA Museums & Galleries,Imperial War Museum,50001941,2552387,IWM-Grant in Aid October 2015
Department for Culture Media and Sport,Department for Culture Media and Sport,01/10/2015,Grant-in-Aid (DCMS NDPBs),GIA Museums & Galleries,Natural History Museum,50001942,3472000,NHM Grant in Aid October 2015
Department for Culture Media and Sport,Department for Culture Media and Sport,01/10/2015,Grant-in-Aid (DCMS NDPBs),GIA Museums & Galleries,National Museums & Galleries Merseyside,50001943,1903541,NML Grant in Aid October 2015
Department for Culture Media and Sport,Department for Culture Media and Sport,01/10/2015,Grant-in-Aid (DCMS NDPBs),GIA Museums & Galleries,The Royal Armouries,50001944,713515,RA Grant in Aid October 2015
Department for Culture Media and Sport,Department for Culture Media and Sport,01/10/2015,Grant-in-Aid (DCMS NDPBs),GIA Museums & Galleries,Science Museum Group (ex-NMSI),50001945,3334917,SMG Grant in Aid October 2015
Department for Culture Media and Sport,Department for Culture Media and Sport,01/10/2015,Grant-in-Aid (DCMS NDPBs),The Royal Parks - funding,The Royal Parks,50001946,2000000,TRP Grant in Aid October 2015
Department for Culture Media and Sport,Department for Culture Media and Sport,01/10/2015,Grant-in-Aid (DCMS NDPBs),GIA Museums & Galleries,British Museum,50001947,3330000,BM Grant in Aid October 2015
Department for Culture Media and Sport,Department for Culture Media and Sport,01/10/2015,Grant to BBC:Home Broadcasting,Home Broadcasting:Grant to BBC,British Broadcasting Corporation,50001948,35275000,BBC GIA OCTOBER 2015 PT1
Department for Culture Media and Sport,Department for Culture Media and Sport,02/10/2015,Finance & Accounting Services,Finance,Liberata UK Ltd,30042573,22666.66,Accounting Services Sept 2015
Department for Culture Media and Sport,Department for Culture Media and Sport,02/10/2015,VAT-Recoverable Contracted-Out,Misc Balance Sheet,Liberata UK Ltd,30042573,4533.33,Accounting Services Sept 2015
Department for Culture Media and Sport,Department for Culture Media and Sport,02/10/2015,Current Grants Private Sector,Listed Places of Worship Grants,Topmark Claims Management Ltd,30042575,248000,Funding for LPW 240915_011015
Department for Culture Media and Sport,Department for Culture Media and Sport,05/10/2015,Grant-in-Aid (DCMS NDPBs),GIA Museums & Galleries,National Maritime Museum,50001920,1411266,RMG (NMM) Grant in Aid October 2015
Department for Culture Media and Sport,Department for Culture Media and Sport,05/10/2015,Grant-in-Aid (DCMS NDPBs),GIA to Equalities Bodies,GIA - EHRC,50001922,263669,October 2015 EHRC Core Costs
Department for Culture Media and Sport,Department for Culture Media and Sport,05/10/2015,Grant-in-Aid (DCMS NDPBs),GIA to Equalities Bodies,GIA - EHRC,50001923,591965,October 2015 EHRC Discretionary Costs
Department for Culture Media and Sport,Department for Culture Media and Sport,05/10/2015,Grant-in-Aid (DCMS NDPBs),GIA Museums & Galleries,National Gallery,50001927,1654796,NG Grant Claim October 2015
Department for Culture Media and Sport,Department for Culture Media and Sport,05/10/2015,Grant-in-Aid (DCMS NDPBs),GIA Sports bodies,United Kingdom Sports Council,50001932,2542865,UK SPORT Grant in Aid October 2015
Department for Culture Media and Sport,Department for Culture Media and Sport,05/10/2015,Grant-in-Aid (DCMS NDPBs),GIA Gambling + Lottery bodies,National Lottery Commission,50001934,184618,NLC Grant in aid October 2015
Department for Culture Media and Sport,Department for Culture Media and Sport,05/10/2015,Grant-in-Aid (DCMS NDPBs),GIA Architecture+Heritage,Historic England (GIA),50001937,9200000,EH Grant in Aid October 2015
Department for Culture Media and Sport,Department for Culture Media and Sport,05/10/2015,Grant-in-Aid (DCMS NDPBs),The Royal Parks - funding,Tate Gallery,50001940,2582583,TATE Grant in Aid October 2015
Department for Culture Media and Sport,Department for Culture Media and Sport,07/10/2015,Early Retirement - payments,Admin Restructuring Costs DEL,Cabinet Office (CS Superannuation),30042591,545342.16,TOP UP UNDERPAYMENT - DCMS
Department for Culture Media and Sport,Department for Culture Media and Sport,07/10/2015,Grant to BBC:Home Broadcasting,Home Broadcasting:Grant to BBC,British Broadcasting Corporation,50001949,35275000,BBC GIA OCTOBER 2015 PT2
Department for Culture Media and Sport,Department for Culture Media and Sport,08/10/2015,General Repairs,Olympic Delivery Authority closedown liabilities,Ideal Response Group Ltd,30042649,134060.84,DEFECT CONTRACT PAYMENT 2 P/E 31/08/15
Department for Culture Media and Sport,Department for Culture Media and Sport,08/10/2015,Current Grants Private Sector,The First World War Centenary Cathedral Repairs Fund,The Archbishops Council,30042696,130308.49,BHAM GRANT R3 SEPTO OCT 2015
Department for Culture Media and Sport,Department for Culture Media and Sport,08/10/2015,Current Grants Private Sector,The First World War Centenary Cathedral Repairs Fund,The Archbishops Council,30042697,27441.5,BRADFORD GRANT R2 SEP TO OCT 2015
Department for Culture Media and Sport,Department for Culture Media and Sport,08/10/2015,Current Grants Private Sector,The First World War Centenary Cathedral Repairs Fund,The Archbishops Council,30042698,52726.16,BRISTOL GRANT R2 SEP TO OCT 2015
Department for Culture Media and Sport,Department for Culture Media and Sport,08/10/2015,Current Grants Private Sector,The First World War Centenary Cathedral Repairs Fund,The Archbishops Council,30042699,29198.86,CHELSMFORD GRANT R2 SEP TO OCT 2015
Department for Culture Media and Sport,Department for Culture Media and Sport,08/10/2015,Current Grants Private Sector,The First World War Centenary Cathedral Repairs Fund,The Archbishops Council,30042700,43658.36,CHESTER GRANT R2&3 SEP TO OCT 2015
Department for Culture Media and Sport,Department for Culture Media and Sport,09/10/2015,T&S UK (Officials only),Procurement,Redfern Travel Limited,30042664,41795.25,Tvl Summary/Recovery Disbursement AUG15
Department for Culture Media and Sport,Department for Culture Media and Sport,09/10/2015,Current Grants Private Sector,The First World War Centenary Cathedral Repairs Fund,The Archbishops Council,30042701,239497,CLIFTON GRANT R2 SEP TO OCT 2015
Department for Culture Media and Sport,Department for Culture Media and Sport,09/10/2015,Current Grants Private Sector,The First World War Centenary Cathedral Repairs Fund,The Archbishops Council,30042703,43789.68,DERBY GRANT R3 SEP TPO OCT 2015
Department for Culture Media and Sport,Department for Culture Media and Sport,09/10/2015,Current Grants Private Sector,The First World War Centenary Cathedral Repairs Fund,The Archbishops Council,30042704,66320,ELY GRANT R2 SEP TO OCT 2015
Department for Culture Media and Sport,Department for Culture Media and Sport,09/10/2015,Current Grants Private Sector,The First World War Centenary Cathedral Repairs Fund,The Archbishops Council,30042706,102000,GLOUCESTER GRANT R1 SEP TO OCT 2015
Department for Culture Media and Sport,Department for Culture Media and Sport,09/10/2015,Current Grants Private Sector,The First World War Centenary Cathedral Repairs Fund,The Archbishops Council,30042707,71885.26,HEREFORD GRANT R2 SEP TO OCT 2015
Department for Culture Media and Sport,Department for Culture Media and Sport,09/10/2015,Current Grants Private Sector,The First World War Centenary Cathedral Repairs Fund,The Archbishops Council,30042708,177859.13,LICHFIELD GRANT R3 SEP TO OCT 2015
Department for Culture Media and Sport,Department for Culture Media and Sport,09/10/2015,Current Grants Private Sector,The First World War Centenary Cathedral Repairs Fund,The Archbishops Council,30042709,32805.84,LIVERPOOL GRANT R2 SEP TO OCT 2015
Department for Culture Media and Sport,Department for Culture Media and Sport,09/10/2015,Current Grants Private Sector,The First World War Centenary Cathedral Repairs Fund,The Archbishops Council,30042710,52424.06,NORWICH GRANT R2 SEP TO OCT 2015
Department for Culture Media and Sport,Department for Culture Media and Sport,09/10/2015,Current Grants Private Sector,The First World War Centenary Cathedral Repairs Fund,The Archbishops Council,30042712,53522.28,PORTSMOUTH GRANT R2 SEP TO OCT 2015
Department for Culture Media and Sport,Department for Culture Media and Sport,09/10/2015,Current Grants Private Sector,The First World War Centenary Cathedral Repairs Fund,The Archbishops Council,30042713,40033.62,RIPON GRANT R2 SEP TO OCT 2015
Department for Culture Media and Sport,Department for Culture Media and Sport,09/10/2015,Current Grants Private Sector,The First World War Centenary Cathedral Repairs Fund,The Archbishops Council,30042714,62769.76,ST ALBANS GRANT R1 SEP TO OCT 2015
Department for Culture Media and Sport,Department for Culture Media and Sport,09/10/2015,Current Grants Private Sector,The First World War Centenary Cathedral Repairs Fund,The Archbishops Council,30042715,27499.4,SST EDMUNDSBURY GRANT R3 SEP TO OCT 2015
Department for Culture Media and Sport,Department for Culture Media and Sport,09/10/2015,Current Grants Private Sector,The First World War Centenary Cathedral Repairs Fund,The Archbishops Council,30042716,115529.54,TRURO GRANT R2 SEP TO OCT 2015
Department for Culture Media and Sport,Department for Culture Media and Sport,09/10/2015,Current Grants Private Sector,The First World War Centenary Cathedral Repairs Fund,The Archbishops Council,30042718,71002.37,WESTMINSTER GRANT R1&3 SEP TO OCT 2015
Department for Culture Media and Sport,Department for Culture Media and Sport,09/10/2015,Mailroom Services,Estates & Property Services,HM Revenue & Customs,30042727,1675792.6,15-16 Q1 DCMS WORKSTATIONS
Department for Culture Media and Sport,Department for Culture Media and Sport,09/10/2015,Current Grants Private Sector,Other Heritage Programme Costs,Topmark Claims Management Ltd,30042732,81000,MGS JULY-SEPTEMBER 2015
Department for Culture Media and Sport,Department for Culture Media and Sport,09/10/2015,Current Grants Private Sector,Listed Places of Worship Grants,Topmark Claims Management Ltd,30042733,525000,Funding for LPW 011015_081015
Department for Culture Media and Sport,Department for Culture Media and Sport,12/10/2015,Grant to OGD (Resource),Implementing Leveson Recs,Cabinet Office (Citi Tr),30042592,180156.91,Funding for the Royal Charter
Department for Culture Media and Sport,Department for Culture Media and Sport,12/10/2015,External Course Fees,Broadband Delivery UK (Admin),Oxford Said Business School Ltd,30042651,25000,MPLA COHORT 15
Department for Culture Media and Sport,Department for Culture Media and Sport,12/10/2015,VAT-Recoverable Contracted-Out,Misc Balance Sheet,Oxford Said Business School Ltd,30042651,5000,MPLA COHORT 15
Department for Culture Media and Sport,Department for Culture Media and Sport,13/10/2015,Grant to BBC:Home Broadcasting,Home Broadcasting:Grant to BBC,British Broadcasting Corporation,50001950,141100000,BBC GIA OCTOBER 2015 PT3
Department for Culture Media and Sport,Department for Culture Media and Sport,14/10/2015,DCMS-Wolfson Museums & Gallery Improvement Fund,Misc Balance Sheet,London Transport Museum,30042600,65372,LTM WOLFSON ROUND 3 APRIL 2015
Department for Culture Media and Sport,Department for Culture Media and Sport,14/10/2015,Basic Pay (Payroll),Heritage - Admin Costs,Historic England (GIA),30042752,50143.5,ENGLISH HERITAGE FINANCE
Department for Culture Media and Sport,Department for Culture Media and Sport,15/10/2015,Temp staff Interim managers,ODA Residuary Functions,Belgrave Eccleston Ltd (ODA),30042594,39690,Consultancy Services 01.09.15 - 30.09.15
Department for Culture Media and Sport,Department for Culture Media and Sport,15/10/2015,Oth Professional Services Prog,ODA Residuary Functions,Turner & Townsend - ODA,30042755,54480,PROFESSIONAL FEES
Department for Culture Media and Sport,Department for Culture Media and Sport,15/10/2015,Oth Professional Services Prog,ODA Residuary Functions,Turner & Townsend - ODA,30042756,53597.4,PROFESSIONAL FEES
Department for Culture Media and Sport,Department for Culture Media and Sport,15/10/2015,Oth Professional Services Prog,ODA Residuary Functions,Turner & Townsend - ODA,30042757,48172.2,PROFESSIONAL FEES
Department for Culture Media and Sport,Department for Culture Media and Sport,15/10/2015,Equalities Helpline Service,GEO Equality Support Helpline,Sitel (UK) Ltd,30042764,146767.81,MILESTONE PAYMENTS
Department for Culture Media and Sport,Department for Culture Media and Sport,15/10/2015,VAT-Recoverable Contracted-Out,Misc Balance Sheet,Sitel (UK) Ltd,30042764,29353.55,MILESTONE PAYMENTS
Department for Culture Media and Sport,Department for Culture Media and Sport,16/10/2015,Capital Grant Private Sector,DAB Digital Radio,Now Digital Limited,30042748,38280,Now Digital DL000038/Final Norfolk 3 of
Department for Culture Media and Sport,Department for Culture Media and Sport,16/10/2015,Grant to OGD (Resource),GEO Other Ongoing Programmes,Home Office (Citi Trf),30042765,1850000,VIOLENCE AGAINST WOMEN CONT FROM GEO
Department for Culture Media and Sport,Department for Culture Media and Sport,16/10/2015,Current Grants Private Sector,Listed Places of Worship Grants,Topmark Claims Management Ltd,30042793,743000,Funding for LPW 081015_151015
Department for Culture Media and Sport,Department for Culture Media and Sport,16/10/2015,TSOL Advice Billed Hours,Legal Advisers to DCMS (TSOL),Government Legal Department,30042797,126500,CHARGES FOR PROF WORK 01 OCT-31 DEC 15
Department for Culture Media and Sport,Department for Culture Media and Sport,16/10/2015,VAT-Recoverable Contracted-Out,Misc Balance Sheet,Government Legal Department,30042797,25300,CHARGES FOR PROF WORK 01 OCT-31 DEC 15
Department for Culture Media and Sport,Department for Culture Media and Sport,16/10/2015,TSOL Advice Billed Hours,Legal Advisers to DCMS (TSOL),Government Legal Department,30042798,424250,Charges from 01 October - 31 December 15
Department for Culture Media and Sport,Department for Culture Media and Sport,16/10/2015,VAT-Recoverable Contracted-Out,Misc Balance Sheet,Government Legal Department,30042798,84850,Charges from 01 October - 31 December 15
Department for Culture Media and Sport,Department for Culture Media and Sport,19/10/2015,Other Consultancy,Museums+Cultural PropertyProgs,Capita Bus Services (Interim Staff),30042513,28786.46,P/E 04/07-29/08/2015
Department for Culture Media and Sport,Department for Culture Media and Sport,19/10/2015,Grant to BBC:Home Broadcasting,Home Broadcasting:Grant to BBC,British Broadcasting Corporation,50001951,35275000,BBC GIA OCTOBER 2015
Department for Culture Media and Sport,Department for Culture Media and Sport,20/10/2015,Capital Grant Private Sector,Broadband UK Capital+Programme,Arqiva Ltd,30042803,41527.87,Mobile Infrastructure Project Grant Claim
Department for Culture Media and Sport,Department for Culture Media and Sport,21/10/2015,Capital Grants to LAs,Broadband UK Capital+Programme,Leeds City Council (BDUK),30042816,268122,BDUK Superfast Britain milestone grant claim payment
Department for Culture Media and Sport,Department for Culture Media and Sport,21/10/2015,Capital Grants to LAs,Broadband UK Capital+Programme,Leeds City Council (BDUK),30042817,48796,BDUK Superfast Britain milestone grant claim payment
Department for Culture Media and Sport,Department for Culture Media and Sport,21/10/2015,Capital Grants to LAs,Broadband UK Capital+Programme,East Cheshire BC Council Fund Account,30042818,614510,BDUK Superfast Britain milestone grant claim payment
Department for Culture Media and Sport,Department for Culture Media and Sport,21/10/2015,Capital Grants to LAs,Broadband UK Capital+Programme,Liverpool City Council,30042819,933620.58,BDUK Superfast Britain milestone grant claim payment
Department for Culture Media and Sport,Department for Culture Media and Sport,21/10/2015,Payroll (Logica),Human Resources Team,CGI IT UK Limited,30042837,30705.14,2015 Pension scheme - May 2015
Department for Culture Media and Sport,Department for Culture Media and Sport,21/10/2015,VAT-Recoverable Contracted-Out,Misc Balance Sheet,CGI IT UK Limited,30042837,6141.03,2015 Pension scheme - May 2015
Department for Culture Media and Sport,Department for Culture Media and Sport,22/10/2015,Tribunal Administration Fees,Sports - Programme Costs,Sport Resolutions (UK),30042805,128120,NADP SERVICE 1 JUL 2015 - 30 SEP 2015
Department for Culture Media and Sport,Department for Culture Media and Sport,22/10/2015,Tribunal Administration Fees,Sports - Programme Costs,Sport Resolutions (UK),30042806,110640,NADP SERVICE 1 APRIL 2015 30 JUNE 2015
Department for Culture Media and Sport,Department for Culture Media and Sport,22/10/2015,Research,EAU Taking Part Survey,TNS UK LTD,30042826,128279,Completion September 2015 Fieldwork
Department for Culture Media and Sport,Department for Culture Media and Sport,22/10/2015,VAT-Recoverable Contracted-Out,Misc Balance Sheet,TNS UK LTD,30042826,25655.8,Completion September 2015 Fieldwork
Department for Culture Media and Sport,Department for Culture Media and Sport,22/10/2015,Current Grants Private Sector,GEO Other Ongoing Programmes,Stonewall,30042834,108891.81,Stonewall - Payment Request Quarter 2
Department for Culture Media and Sport,Department for Culture Media and Sport,22/10/2015,Current Grants Private Sector,GEO Other Ongoing Programmes,National Children's Bureau,30042835,30475,NCB - Payment Request Quarter 2
Department for Culture Media and Sport,Department for Culture Media and Sport,22/10/2015,Capital Grant Private Sector,Grant support to NFTS,National Film & Television School,50001953,215583,NFTS GRANT CLAIM OCTOBER 2015
Department for Culture Media and Sport,Department for Culture Media and Sport,23/10/2015,Current Grants Private Sector,GEO Other Ongoing Programmes,Show Racism the Red Card,30042846,25789.93,SRTRC Grant Payment Request Qtr 2 2015
Department for Culture Media and Sport,Department for Culture Media and Sport,23/10/2015,Current Grants Private Sector,GEO Other Ongoing Programmes,Diversity Role Models,30042848,77428.79,DRM Grant Payment Request Quarter 2 2015
Department for Culture Media and Sport,Department for Culture Media and Sport,23/10/2015,Capital Grants to LAs,Broadband UK Capital+Programme,Herefordshire Council,30042849,1316772,BDUK Superfast Britain milestone grant claim payment
Department for Culture Media and Sport,Department for Culture Media and Sport,23/10/2015,Current Grants Private Sector,Listed Places of Worship Grants,Topmark Claims Management Ltd,30042851,463000,Funding for LPW 151015_221015
Department for Culture Media and Sport,Department for Culture Media and Sport,26/10/2015,VAT-Recoverable Contracted-Out,Misc Balance Sheet,ARCADIS Solutions Ltd,30042840,36407.84,VJ70 Commemorations 15th August 2015
Department for Culture Media and Sport,Department for Culture Media and Sport,26/10/2015,Current Grants Private Sector,GEO Other Ongoing Programmes,EACH,30042887,44003.29,EACH GRANT Payment Request Quarter2 2015
Department for Culture Media and Sport,Department for Culture Media and Sport,26/10/2015,Capital Grants to LAs,Broadband UK Capital+Programme,Newport City Council,30042888,582567,BDUK Superconnected Cities Connection Vouchers Claim
Department for Culture Media and Sport,Department for Culture Media and Sport,26/10/2015,Capital Grants to LAs,Broadband UK Capital+Programme,Bristol City Council,30042892,85414,BDUK Superconnected Cities Connection Vouchers Claim
Department for Culture Media and Sport,Department for Culture Media and Sport,26/10/2015,Capital Grants to LAs,Broadband UK Capital+Programme,Leeds City Council (BDUK),30042893,340009,BDUK Superconnected Cities Connection Vouchers Claim
Department for Culture Media and Sport,Department for Culture Media and Sport,26/10/2015,Grant to BBC:Home Broadcasting,Home Broadcasting:Grant to BBC,British Broadcasting Corporation,50001952,35275000,BBC GIA OCTOBER 2015 PT5
Department for Culture Media and Sport,Department for Culture Media and Sport,29/10/2015,Capital Grant Private Sector,Broadband UK Capital+Programme,Avanti Communications Group Plc,30042909,30675,BDUK Market Test Pilots milestone payment
Department for Culture Media and Sport,Department for Culture Media and Sport,29/10/2015,Capital Grants to LAs,Broadband UK Capital+Programme,Cardiff County Council (Urban),30042918,301105.49,BDUK Superconnected Cities Connection Vouchers Claim
Department for Culture Media and Sport,Department for Culture Media and Sport,29/10/2015,Capital Grant Private Sector,Broadband UK Capital+Programme,Arqiva Ltd,30042927,613812.79,Mobile Infrastructure Project Grant Claim
Department for Culture Media and Sport,Department for Culture Media and Sport,29/10/2015,Capital Grants to LAs,Broadband UK Capital+Programme,West Berkshire Council,30042935,103043,BDUK Superfast Britain milestone grant claim payment
Department for Culture Media and Sport,Department for Culture Media and Sport,29/10/2015,Capital Grants to LAs,Broadband UK Capital+Programme,East Riding of Yorkshire Council,30042936,1280994,BDUK Superfast Britain milestone grant claim payment
Department for Culture Media and Sport,Department for Culture Media and Sport,29/10/2015,Capital Grants to LAs,Broadband UK Capital+Programme,Herefordshire Council,30042937,5411465,BDUK Superfast Britain milestone grant claim payment
Department for Culture Media and Sport,Department for Culture Media and Sport,29/10/2015,Capital Grants to LAs,Broadband UK Capital+Programme,Bristol City Council,30042938,44969,BDUK Superconnected Cities Connection Vouchers Claim
Department for Culture Media and Sport,Department for Culture Media and Sport,29/10/2015,Capital Grants to LAs,Broadband UK Capital+Programme,Liverpool City Council,30042939,94983,BDUK Superfast Britain milestone grant claim payment
Department for Culture Media and Sport,Department for Culture Media and Sport,29/10/2015,Capital Grants to LAs,Broadband UK Capital+Programme,Derbyshire County Council,30042940,1310614,BDUK Superfast Britain milestone grant claim payment
Department for Culture Media and Sport,Department for Culture Media and Sport,29/10/2015,Capital Grants to LAs,Broadband UK Capital+Programme,Lancashire County Council,30042941,1017538,BDUK Superfast Britain milestone grant claim payment
Department for Culture Media and Sport,Department for Culture Media and Sport,30/10/2015,Current Grants Private Sector,GEO Other Ongoing Programmes,Barnardo's,30042926,67646,HBT Grant for Q2 October 2015
Department for Culture Media and Sport,Department for Culture Media and Sport,30/10/2015,Current Grants Private Sector,Listed Places of Worship Grants,Topmark Claims Management Ltd,30042946,600000,Funding for LPW 221015_291015
